lending/lending_fUSD_20240219
["ID","MTS","AMOUNT","RATE_DAILY","PERIOD"]
[314438284,1708353038182,-400.0,0.00036999,3]
[314438285,1708353038192,-150.0,0.00036999,2]
[314438286,1708353038433,-351.33878213,0.00037,2]
[314438287,1708353038451,-1704.77468899,0.00037,2]
[314438288,1708353038467,-2002.09899457,0.00037,2]
[314438289,1708353038475,-3438.83756248,0.00037,2]
[314438290,1708353038486,-1909.42862918,0.00037,2]
[314438298,1708353040271,-1200.53790012,0.00037,2]
[314438299,1708353040281,-156.05,0.00037,2]
[314438300,1708353040291,-210.0,0.0003702,2]
[314438301,1708353040300,-500.0,0.0003709,2]
[314438302,1708353040311,-222.49,0.00037113,2]
[314438303,1708353040320,-538.18,0.00037132,2]
[314438304,1708353040330,-386.27,0.00037245,2]
[314438305,1708353040339,-750.0,0.00037247,2]
[314438306,1708353040348,-152.08249691,0.00037308,2]
[314438307,1708353040358,-250.0,0.00037358,111]
[314438308,1708353040367,-153.08,0.00037432,2]
[314438309,1708353040376,-146.07909393,0.00037472,2]
[314438310,1708353040389,-3.92090607,0.00037472,2]
[314438311,1708353040398,-152.11,0.00037473,2]
[314438312,1708353040407,-164.47586611,0.00037616,2]
[314438313,1708353040419,-114.20413389,0.00037616,2]
[314438314,1708353040428,-155.7,0.00037726,2]
[314438315,1708353040437,-293.24928881,0.0003774,2]
[314438316,1708353040449,-270.17983787,0.0003774,2]
[314438317,1708353040461,-46.17087332,0.0003774,2]
[314438318,1708353040469,-155.73,0.00037916,2]
[314438319,1708353040479,-201.64633046,0.0003793,2]
[314438320,1708353040500,-8.35366954,0.0003793,2]
[314438321,1708353040512,-200.0,0.00037987,2]
[314438322,1708353040521,-515.28,0.00037987,2]
[314438323,1708353040530,-152.08249691,0.00038148,2]
[314438324,1708353040539,-199.74385355,0.00038356,15]
[314438325,1708353040551,-213.39614645,0.00038356,15]
[314438326,1708353040563,-150.0,0.00038356,2]
[314438327,1708353040572,-155.0,0.00038463,2]
[314438328,1708353040581,-463.72085361,0.00038552,14]
[314438329,1708353040593,-24.66060056,0.00038552,14]
[314438330,1708353040603,-386.27,0.00038624,2]
[314438331,1708353040612,-222.49,0.00038757,2]
[314438332,1708353040621,-461.0456,0.000388,3]
[314438333,1708353040629,-621.8161,0.000388,2]
[314438334,1708353040638,-3563.81230387,0.000388,2]
[314438335,1708353040649,-3103.72225,0.000388,2]
[314438336,1708353040661,-414.26372384,0.000388,2]
[314438337,1708353040672,-70.94652229,0.000388,2]
[314438338,1708353040681,-203.45903132,0.0003881,2]
[314438339,1708353040690,-492.20676639,0.0003881,2]
[314438340,1708353041134,-10274.89723361,0.0003881,2]
[314438341,1708353041145,-210.0,0.0003885,2]
[314438342,1708353041154,-7197.17801226,0.00038899,4]
[314438343,1708353041164,-1500.0,0.000389,2]
[314438344,1708353041173,-2112.84,0.000389,3]
[314438345,1708353041182,-2112.84,0.000389,3]
[314438346,1708353041192,-2112.84,0.000389,3]
[314438347,1708353041202,-2112.84,0.000389,3]
[314438348,1708353041211,-2112.84,0.000389,3]
[314438349,1708353041220,-2112.84,0.000389,3]
[314438350,1708353041230,-2112.84,0.000389,3]
[314438351,1708353041238,-2112.84,0.000389,3]
[314438352,1708353041247,-2112.84,0.000389,3]
[314438353,1708353041257,-2112.84,0.000389,3]
[314438355,1708353041266,-2112.84,0.000389,3]
[314438356,1708353041275,-2112.84,0.000389,3]
[314438358,1708353041284,-2112.84,0.000389,3]
[314438359,1708353041293,-2112.84,0.000389,3]
[314438361,1708353041302,-2112.84,0.000389,3]
[314438363,1708353041314,-2112.84,0.000389,3]
[314438364,1708353041323,-2112.84,0.000389,3]
[314438366,1708353041332,-2112.84,0.000389,3]
[314438367,1708353041341,-2112.84,0.000389,3]
[314438369,1708353041351,-2112.84,0.000389,3]
[314438371,1708353041360,-152.31,0.000389,3]
[314438372,1708353041369,-152.31,0.000389,3]
[314438373,1708353041378,-152.31,0.000389,3]
[314438374,1708353041387,-152.31,0.000389,3]
[314438375,1708353041396,-152.31,0.000389,3]
[314438376,1708353041405,-155.24001604,0.00038907,2]
[314438377,1708353041414,-26075.60767846,0.0003891,2]
[314438378,1708353041423,-942.12522,0.0003891,2]
[314438379,1708353041433,-800.0,0.00038925,5]
[314438380,1708353041441,-200.0,0.00038987,4]
[314438381,1708353041450,-200.0,0.00038987,3]
[314438382,1708353041459,-152.08249691,0.00038989,2]
[314438383,1708353041469,-1158.92068312,0.00038992,2]
[314438384,1708353041477,-150.0,0.00039,2]
[314438385,1708353041486,-349.53672005,0.00039004,8]
[314438386,1708353041496,-203.4590313,0.00039004,2]
[314438387,1708353041508,-211.14962369,0.00039009,8]
[314438388,1708353041518,-150.0,0.00039072,2]
[314438389,1708353041527,-2619.64788239,0.000391,2]
[314438390,1708353041536,-169.23,0.000391,2]
[314438391,1708353041547,-511.28,0.00039135,2]
[314438392,1708353041556,-155.0,0.00039174,7]
[314438393,1708353041567,-477.43087202,0.00039192,9]
[314438394,1708353041577,-203.4590313,0.00039198,2]
[314438395,1708353041589,-8079.4605,0.000392,2]
[314438396,1708353041599,-2226.91788734,0.000392,2]
[314438397,1708353041613,-1548.09643358,0.000392,2]
[314438398,1708353041624,-307.46014093,0.000392,2]
[314438399,1708353041635,-114559.25003815,0.000392,2]
[314438400,1708353041645,-645.92020418,0.000392,2]
[314438401,1708353041654,-181.58261503,0.000392,2]
[314438402,1708353041663,-153.98679886,0.00039253,3]
[314438403,1708353041672,-430.9,0.0003926,2]
[314438404,1708353041681,-84106.8581299,0.0003929,5]
[314438405,1708353041690,-84106.8581299,0.00039292,5]
[314438406,1708353041699,-155.43382358,0.00039298,4]
[314438407,1708353041708,-278.98540876,0.00039298,4]
[314438408,1708353041718,-1402.31856012,0.00039298,4]
[314438409,1708353041727,-150.01,0.00039299,2]
[314438410,1708353041736,-3319.32799788,0.00039299,2]
[314438411,1708353041745,-101179.77087072,0.000393,2]
[314438412,1708353041757,-355.32,0.000393,2]
[314438413,1708353041769,-403.47012699,0.000393,2]
[314438414,1708353041780,-629.2233389,0.000393,2]
[314438415,1708353041813,-2358.35777256,0.000393,2]
[314438419,1708353042803,-12117.32974317,0.000393,2]
[314438442,1708353045765,-150.01,0.00039299,2]
[314438443,1708353045775,-3319.32799788,0.00039299,2]
[314438444,1708353045785,-10581.45615721,0.000393,2]
[314438450,1708353908133,500.0,0.000274,7]
[314438451,1708353908807,500.0,0.000274,7]
[314438452,1708353909437,500.0,0.000274,7]
[314438453,1708353910091,500.0,0.000274,7]
[314438454,1708353910734,500.0,0.000274,7]
[314438455,1708353911596,500.0,0.000274,7]
[314438456,1708353912238,500.0,0.000274,7]
[314438457,1708353912918,500.0,0.000274,7]
[314438458,1708353913529,500.0,0.000274,7]
[314438459,1708353914155,500.0,0.000274,7]
[314438460,1708353914796,500.0,0.000274,7]
[314438461,1708353915603,500.0,0.000274,7]
[314438462,1708353916142,500.0,0.000274,7]
[314438463,1708353916772,500.0,0.000274,7]
[314438464,1708353917915,500.0,0.000274,7]
[314438465,1708353918526,500.0,0.000274,7]
[314438466,1708353919150,500.0,0.000274,7]
[314438467,1708353920028,500.0,0.000274,7]
[314438468,1708353920648,500.0,0.000274,7]
[314438469,1708353921284,500.0,0.000274,7]
[314438470,1708353965349,25473.66557722,0.0002258,2]
[314438472,1708354080345,-500.0,0.000274,7]
[314438473,1708354080368,-500.0,0.000274,7]
[314438474,1708354080390,-500.0,0.000274,7]
[314438475,1708354080411,-500.0,0.000274,7]
[314438476,1708354080431,-388.0,0.000274,7]
[314438477,1708354095938,-150.0,0.00027399,2]
[314438478,1708354095970,-150.0,0.00027399,2]
[314438481,1708354125705,550.0,0.00025,3]
[314438482,1708354126790,600.0,0.00027,3]
[314438486,1708354145111,-769.56774036,0.00030138,4]
[314438487,1708354148303,-2123.2228385,0.00030138,4]
[314438488,1708354148323,-210.0,0.00030139,2]
[314438489,1708354148344,-210.0,0.00030139,2]
[314438490,1708354148375,-155.21611446,0.000328,2]
[314438491,1708354148398,-293.15853906,0.000328,2]
[314438499,1708354232038,-304.1611753,0.000328,2]
[314438500,1708354232051,-27.94028564,0.000328,2]
[314438501,1708354232060,-1726.84564418,0.000329,2]
[314438502,1708354232072,-227.15435582,0.000329,2]
[314438503,1708354232082,-151.0,0.00034021,120]
[314438504,1708354232091,-151.0,0.00034715,30]
[314438505,1708354232101,-360.06771643,0.0003537,7]
[314438506,1708354232110,-258.82056078,0.0003542,30]
[314438507,1708354232121,-151.0,0.00035424,7]
[314438508,1708354232130,-2475.62091322,0.00035927,4]
[314438509,1708354232142,-417.16966564,0.00035927,4]
[314438510,1708354232151,-151.0,0.00036147,4]
[314438511,1708354232160,-12.26033435,0.00036884,2]
[314438513,1708354237859,-138.73966565,0.00036884,2]
[314438514,1708354237868,-382.06511357,0.00037,7]
[314438515,1708354238089,-125.28520528,0.00037,7]
[314438516,1708354238098,-300.0,0.000376,11]
[314438517,1708354238107,-177.99,0.00037629,2]
[314438518,1708354238116,-121.09271636,0.0003768,2]
[314438519,1708354238148,-246.62728364,0.0003768,2]
[314438520,1708354238157,-153.08,0.00037721,2]
[314438521,1708354238166,-207.0,0.00037751,2]
[314438522,1708354238176,-155.12,0.00037781,2]
[314438523,1708354238185,-374.45,0.00037797,2]
[314438524,1708354238194,-312.32,0.00037807,2]
[314438525,1708354238203,-269.09,0.0003783,2]
[314438527,1708354238212,-2263.75298945,0.00037873,2]
[314438528,1708354238224,-2007.1000332,0.00037873,2]
[314438529,1708354238235,-1004.60373993,0.00037873,2]
[314438532,1708354240517,-565.6966,0.00037873,2]
[314438533,1708354241300,-1162.32500004,0.00037873,2]
[314438534,1708354241312,-564.08460037,0.00037873,2]
[314438535,1708354241325,-380.10577305,0.00037873,2]
[314438536,1708354241338,-1046.93126396,0.00037873,2]
[314438537,1708354241348,-232.23,0.00037998,2]
[314438538,1708354241359,-391.0,0.00038,2]
[314438539,1708354241368,-687.68,0.00038011,2]
[314438540,1708354241379,-200.0,0.00038356,2]
[314438541,1708354241388,-47.68873604,0.00038356,15]
[314438542,1708354241400,-331.02126396,0.00038356,15]
[314438543,1708354241409,-67.37873584,0.00038356,2]
[314438734,1708354245882,-82.62126416,0.00038356,2]
[314438736,1708354245891,-23773.19811908,0.00038552,14]
[314438739,1708354245904,-6682.06683592,0.00038552,14]
[314438741,1708354245914,-200.0,0.000386,12]
[314438743,1708354245924,-391.0,0.0003863,14]
[314438745,1708354245934,-200.0,0.00038658,2]
[314438747,1708354245943,-152.0,0.000387,3]
[314438750,1708354245952,-1229.78823902,0.00038798,2]
[314438752,1708354245962,-207.3409,0.000388,2]
[314438756,1708354245971,-150.0,0.00038871,2]
[314438758,1708354245980,-150.0,0.00038876,2]
[314438761,1708354245989,-1749.47,0.000389,3]
[314438765,1708354245999,-1749.47,0.000389,3]
[314438767,1708354246008,-1749.47,0.000389,3]
[314438770,1708354246017,-1749.47,0.000389,3]
[314438773,1708354246026,-1749.47,0.000389,3]
[314438776,1708354246036,-1749.47,0.000389,3]
[314438779,1708354246045,-1749.47,0.000389,3]
[314438781,1708354246054,-1749.47,0.000389,3]
[314438783,1708354246064,-1749.47,0.000389,3]
[314438785,1708354246073,-1749.47,0.000389,3]
[314438786,1708354246082,-1749.47,0.000389,3]
[314438787,1708354246091,-1749.47,0.000389,3]
[314438788,1708354246099,-1749.47,0.000389,3]
[314438789,1708354246109,-1749.47,0.000389,3]
[314438790,1708354246118,-1749.47,0.000389,3]
[314438791,1708354246127,-1749.47,0.000389,3]
[314438792,1708354246137,-1749.47,0.000389,3]
[314438793,1708354246146,-1749.47,0.000389,3]
[314438794,1708354246155,-1749.47,0.000389,3]
[314438796,1708354246164,-1749.47,0.000389,3]
[314438798,1708354246173,-152.32,0.000389,3]
[314438800,1708354246182,-152.32,0.000389,3]
[314438802,1708354246191,-152.32,0.000389,3]
[314438803,1708354246202,-152.32,0.000389,3]
[314438806,1708354246235,-150.0,0.00038903,2]
[314438808,1708354246245,-391.0,0.00038904,14]
[314438810,1708354246254,-785.10435,0.0003891,2]
[314438812,1708354246264,-150.0,0.00038911,2]
[314438814,1708354246273,-2357.68309416,0.00038937,2]
[314438816,1708354246283,-4860.87918059,0.00038937,2]
[314438818,1708354246292,-150.0,0.0003895,2]
[314438820,1708354246301,-150.0,0.00038954,2]
[314438822,1708354246311,-200.0,0.00038959,2]
[314438824,1708354246321,-150.0,0.00038959,2]
[314438826,1708354246331,-800.0,0.00038986,5]
[314438828,1708354246341,-200.0,0.00038987,4]
[314438830,1708354246351,-200.0,0.00038987,3]
[314438831,1708354246360,-200.0,0.00038987,2]
[314438834,1708354246371,-2139.24432221,0.00038988,4]
[314438836,1708354246382,-626.9478939,0.00038989,4]
[314438837,1708354246392,-48472.93478184,0.0003899,2]
[314438840,1708354246403,-25731.59,0.00039,15]
[314438842,1708354246412,-167.0,0.00039019,2]
[314438844,1708354246422,-301.75168261,0.00039024,2]
[314438846,1708354246431,-150.0,0.00039024,2]
[314438848,1708354246440,-150.0,0.00039027,2]
[314438850,1708354246450,-150.0,0.00039029,2]
[314438852,1708354246459,-150.0,0.00039029,2]
[314438854,1708354246468,-150.0,0.00039031,2]
[314438856,1708354246477,-150.0,0.00039035,2]
[314438858,1708354246486,-158.77174953,0.00039037,8]
[314438860,1708354246496,-404.07608308,0.00039037,8]
[314438861,1708354246505,-6750.0,0.00039037,8]
[314438863,1708354246514,-1744.25366146,0.00039037,8]
[314438866,1708354246524,-150.0,0.00039052,2]
[314438868,1708354246534,-150.0,0.00039056,2]
[314438870,1708354246543,-150.0,0.00039058,2]
[314438872,1708354246553,-150.0,0.00039059,2]
[314438873,1708354246564,-1500.0,0.00039061,2]
[314438876,1708354246574,-150.0,0.00039073,2]
[314438878,1708354246584,-367.72,0.00039074,2]
[314438880,1708354246593,-150.0,0.00039081,2]
[314438882,1708354246602,-1229.78823902,0.00039081,2]
[314438884,1708354246614,-150.0,0.00039084,2]
[314438885,1708354246623,-150.0,0.00039084,2]
[314438888,1708354246632,-150.0,0.00039089,2]
[314438889,1708354246641,-150.0,0.00039092,2]
[314438892,1708354246651,-300.0,0.00039094,2]
[314438894,1708354246660,-15911.60387972,0.00039099,7]
[314438896,1708354246670,-64711.5898,0.000391,2]
[314438898,1708354246681,-150.0,0.000391,2]
[314438900,1708354246690,-150.0,0.000391,2]
[314438902,1708354246699,-150.0,0.000391,2]
[314438904,1708354246708,-150.0,0.00039101,2]
[314438906,1708354246717,-1500.0,0.00039112,2]
[314438908,1708354246726,-151.40588202,0.0003912,2]
[314438910,1708354246735,-1500.0,0.00039127,2]
[314438912,1708354246744,-150.0,0.00039128,2]
[314438914,1708354246753,-150.0,0.00039135,2]
[314438917,1708354246774,-150.0,0.00039145,2]
[314438919,1708354246783,-150.0,0.00039155,2]
[314438921,1708354246796,-150.0,0.00039156,2]
[314438924,1708354246806,-300.0,0.0003916,2]
[314438926,1708354246816,-150.0,0.0003916,2]
[314438928,1708354246826,-300.0,0.00039164,2]
[314438930,1708354246835,-150.0,0.0003917,2]
[314438932,1708354246846,-1536.62434998,0.00039174,2]
[314438934,1708354246855,-150.0,0.00039176,2]
[314438936,1708354246865,-391.0,0.00039178,14]
[314438938,1708354246873,-150.0,0.00039189,2]
[314438940,1708354246883,-150.0,0.00039193,2]
[314438942,1708354246892,-231.52190759,0.00039196,2]
[314438944,1708354246901,-150.0,0.00039199,2]
[314438946,1708354246911,-1000.0,0.000392,10]
[314438948,1708354246921,-613.62419399,0.000392,2]
[314438950,1708354246931,-150.0,0.00039205,2]
[314438952,1708354246941,-150.0,0.0003921,2]
[314438954,1708354246950,-242.89344208,0.00039217,2]
[314438956,1708354246960,-150.0,0.00039225,2]
[314438958,1708354246970,-1500.0,0.00039228,2]
[314438960,1708354246979,-150.0,0.00039228,2]
[314438962,1708354246988,-150.0,0.00039236,2]
[314438964,1708354246997,-1500.0,0.00039237,2]
[314438966,1708354247006,-150.0,0.00039246,2]
[314438968,1708354247015,-150.0,0.00039246,2]
[314438970,1708354247025,-150.0,0.00039246,2]
[314438972,1708354247034,-1500.0,0.00039249,2]
[314438974,1708354247045,-150.0,0.00039255,2]
[314438976,1708354247054,-150.0,0.00039255,2]
[314438978,1708354247064,-150.0,0.00039256,2]
[314438980,1708354247073,-150.0,0.00039257,2]
[314438982,1708354247082,-200.0,0.0003926,2]
[314438985,1708354247092,-344.72,0.0003926,2]
[314438986,1708354247101,-151.91528633,0.00039263,2]
[314438988,1708354247111,-150.0,0.00039264,2]
[314438991,1708354247120,-150.0,0.00039269,2]
[314438993,1708354247129,-150.0,0.0003927,2]
[314438995,1708354247139,-150.0,0.00039279,2]
[314438997,1708354247147,-189.0,0.00039285,7]
[314438999,1708354247157,-1500.0,0.00039287,2]
[314439001,1708354247166,-196.73242146,0.0003929,2]
[314439003,1708354247175,-1500.0,0.00039291,2]
[314439005,1708354247184,-150.0,0.00039292,2]
[314439007,1708354247194,-83892.2998183,0.00039295,5]
[314439009,1708354247203,-151.20667561,0.00039299,2]
[314439011,1708354247213,-3319.32799788,0.00039299,2]
[314439013,1708354247222,-517.67521583,0.000393,3]
[314439015,1708354247231,-67650.39198449,0.000393,2]
[314439022,1708354247288,-12900.79745342,0.000393,2]
[314439025,1708354247305,-1275.82455,0.000393,2]
[314439027,1708354247320,-8962.92704686,0.000393,2]
[314439030,1708354247333,-104688.77859279,0.000393,2]
[314440995,1708354270570,703.06270227,0.00023,2]
[314440996,1708354270596,1970607.01357607,0.00023,2]
[314440997,1708354270621,50000.0,0.00023,2]
[314440998,1708354270648,1353555.70288547,0.00023,2]
[314440999,1708354287376,481.05745575,0.00018,2]
[314441000,1708354292996,1667.10780417,0.0001,2]
[314441001,1708354295133,345.27643508,0.000225,2]
[314441002,1708354315563,9350.82362134,6.94e-05,2]
[314441003,1708354432348,29560.0,0.00023,2]
[314441004,1708354432369,902056.40489178,0.00023,2]
[314441005,1708354432393,1563964.84421416,0.00023,2]
[314441006,1708354432414,256695.76316453,0.00023,2]
[314441011,1708354677209,202.2655046,0.00022979,2]
[314441013,1708355234131,-408.87834854,0.0002654,2]
[314441015,1708355350108,-224.16327853,0.00026441,2]
[314441016,1708355350127,-224.16327852,0.00026442,2]
[314441017,1708355350148,-224.16327852,0.00026443,2]
[314441018,1708355350167,-224.0,0.00026539,2]
[314441019,1708355350187,-91.12165146,0.0002654,2]
[314441020,1708355350205,-267.72445506,0.00026541,2]
[314441021,1708355350227,-203.22520032,0.00026543,2]
[314441022,1708355350245,-359.04339929,0.00026743,2]
[314441023,1708355350265,-208.51696892,0.00026744,2]
[314441024,1708355350284,-208.51696892,0.00026744,2]
[314441025,1708355350305,-6419.96071676,0.0002705,2]
[314441026,1708355350325,-236.66,0.00027836,2]
[314441027,1708355353220,-155.0,0.00029798,2]
[314441028,1708355353242,-184.23911171,0.00029799,2]
[314441029,1708355353262,-150.0,0.00029896,2]
[314441030,1708355353281,-18678.2,0.00029898,2]
[314441031,1708355353300,-1479.55732966,0.000299,2]
[314441032,1708355353318,-2711.62792629,0.0003,7]
[314441033,1708355353337,-6274.06894753,0.0003,2]
[314441034,1708355353356,-1335.13196106,0.00031,7]
[314441035,1708355353378,-200.0,0.000319,4]
[314441036,1708355353399,-12882.0,0.000322,2]
[314441037,1708355353419,-200.0,0.000329,5]
[314441038,1708355353439,-127.53320946,0.000339,7]
[314441039,1708355398337,5375.2888939,0.0003,2]
[314441050,1708355432143,-207.0,0.00033751,2]
[314441051,1708355432152,-72.46679054,0.000339,7]
[314441052,1708355432162,-182.73,0.00034234,2]
[314441053,1708355432171,-151.0,0.00034632,120]
[314441054,1708355432183,-193.52,0.00034817,2]
[314441055,1708355432192,-750.14,0.00034866,2]
[314441056,1708355432202,-200.0,0.000349,8]
[314441057,1708355432212,-4623.93056861,0.00034999,4]
[314441058,1708355432223,-3900.0,0.00035,7]
[314441059,1708355432233,-269.09,0.00035094,2]
[314441060,1708355432242,-434.58,0.00035277,2]
[314441061,1708355432251,-151.0,0.00035339,30]
[314441062,1708355432262,-177.99,0.00035627,2]
[314441063,1708355432271,-200.0,0.000359,9]
[314441064,1708355432281,-312.04,0.00035947,2]
[314441065,1708355432290,-33558.8028,0.00035995,2]
[314441066,1708355432299,-202.4787719,0.00036,3]
[314441067,1708355432309,-151.0,0.0003606,7]
[314441068,1708355432318,-249.86,0.00036201,2]
[314441069,1708355432327,-220.63,0.00036685,2]
[314441070,1708355432336,-151.0,0.00036796,4]
[314441071,1708355432345,-200.0,0.000369,10]
[314441072,1708355432354,-150.0,0.00037071,2]
[314441073,1708355432363,-250.64,0.00037195,2]
[314441074,1708355432373,-23411.21025306,0.000374,5]
[314441075,1708355432382,-434.58,0.00037541,2]
[314441076,1708355432391,-151.0,0.00037547,2]
[314441077,1708355432401,-5465.05898066,0.00037879,2]
[314441078,1708355432411,-200.0,0.000379,11]
[314441079,1708355432420,-220.63,0.00038043,2]
[314441080,1708355432429,-347.15,0.00038356,15]
[314441081,1708355432440,-150.0,0.00038356,2]
[314441082,1708355432449,-177.99,0.00038367,2]
[314441084,1708355432458,-219.77165437,0.00038552,12]
[314441086,1708355432467,-5359.95815951,0.00038552,14]
[314441088,1708355432476,-3356.96673798,0.00038552,14]
[314441090,1708355432486,-2121.91478478,0.000387,2]
[314441092,1708355432495,-591.68,0.00038706,7]
[314441094,1708355432504,-500.0,0.00038706,7]
[314441096,1708355432513,-500.0,0.00038706,7]
[314441098,1708355432521,-500.0,0.00038706,7]
[314441100,1708355432530,-500.0,0.00038706,7]
[314441102,1708355432539,-500.0,0.00038706,7]
[314441104,1708355432548,-500.0,0.00038706,7]
[314441106,1708355432558,-401.79,0.00038706,7]
[314441108,1708355432567,-500.0,0.00038706,7]
[314441110,1708355432576,-3896.4659,0.000388,2]
[314441112,1708355432585,-682.4769,0.000388,2]
[314441113,1708355432594,-4374.79126254,0.000388,2]
[314441114,1708355432603,-200.0,0.000389,12]
[314441115,1708355432612,-1429.24,0.000389,3]
[314441116,1708355432623,-557.42643607,0.000389,3]
[314441117,1708355432637,-871.81356393,0.000389,3]
[314441118,1708355432658,-210.95297053,0.000389,3]
[314441119,1708355432686,-1218.28702947,0.000389,3]
[314441120,1708355432695,-1429.24,0.000389,3]
[314441121,1708355432705,-1429.24,0.000389,3]
[314441122,1708355432715,-1429.24,0.000389,3]
[314441123,1708355432725,-1429.24,0.000389,3]
[314441124,1708355432735,-1429.24,0.000389,3]
[314441125,1708355432745,-1429.24,0.000389,3]
[314441126,1708355432755,-1429.24,0.000389,3]
[314441127,1708355432765,-1429.24,0.000389,3]
[314441128,1708355432775,-1429.24,0.000389,3]
[314441129,1708355432784,-1429.24,0.000389,3]
[314441130,1708355432794,-1429.24,0.000389,3]
[314441131,1708355432804,-1429.24,0.000389,3]
[314441132,1708355432814,-1429.24,0.000389,3]
[314441133,1708355432823,-1429.24,0.000389,3]
[314441134,1708355432833,-1429.24,0.000389,3]
[314441135,1708355432842,-1429.24,0.000389,3]
[314441136,1708355432852,-1429.24,0.000389,3]
[314441137,1708355432861,-2324.21313472,0.000389,2]
[314441138,1708355432870,-2324.21313462,0.000389,2]
[314441139,1708355432880,-2324.21313462,0.000389,2]
[314441140,1708355432889,-304.0,0.000389,4]
[314441141,1708355432899,-2324.21313462,0.000389,2]
[314441142,1708355432908,-152.33,0.000389,3]
[314441143,1708355432921,-152.33,0.000389,3]
[314441144,1708355432930,-152.33,0.000389,3]
[314441145,1708355432939,-152.33,0.000389,3]
[314441146,1708355432949,-2324.21313462,0.00038907,2]
[314441147,1708355432958,-654.25363,0.0003891,2]
[314441148,1708355432968,-5898.52725125,0.00038939,2]
[314441149,1708355432977,-2324.21313462,0.00038958,2]
[314441150,1708355432987,-800.0,0.00038986,5]
[314441151,1708355432997,-361.37159422,0.00038988,2]
[314441152,1708355433007,-15525.0,0.00039,7]
[314441153,1708355433016,-10000.0,0.00039,3]
[314441154,1708355433026,-1663.6913172,0.00039,2]
[314441155,1708355433035,-207.0,0.00039001,13]
[314441156,1708355433045,-2324.21313462,0.0003901,2]
[314441157,1708355433055,-6075.0,0.00039048,8]
[314441158,1708355433064,-1706.03148866,0.00039059,8]
[314441159,1708355433074,-2324.21313462,0.00039061,2]
[314441160,1708355433083,-150.0,0.000391,2]
[314441161,1708355433093,-2324.21313462,0.00039113,2]
[314441162,1708355433102,-2324.21313462,0.00039165,2]
[314441163,1708355433112,-2121.9147847,0.00039167,2]
[314441164,1708355433121,-582.9429843,0.000392,2]
[314441165,1708355433131,-2324.21313462,0.00039216,2]
[314441166,1708355433140,-750.14,0.00039224,2]
[314441167,1708355433150,-4374.79126249,0.00039256,2]
[314441168,1708355433159,-275.77,0.0003926,2]
[314441169,1708355433169,-2324.21313462,0.00039268,2]
[314441170,1708355433181,-5567.71078059,0.00039285,10]
[314441171,1708355433195,-8749.25979807,0.00039289,10]
[314441172,1708355433204,-25163.48506375,0.00039289,4]
[314441173,1708355433214,-196.73242146,0.0003929,2]
[314441174,1708355433225,-500.0,0.00039294,4]
[314441175,1708355433234,-84383.5687196,0.00039295,5]
[314441176,1708355433244,-5764.2869798,0.00039295,2]
[314441177,1708355433253,-515.93264545,0.00039297,4]
[314441178,1708355433264,-158.17890232,0.00039298,30]
[314441179,1708355433274,-2996.89078389,0.00039298,4]
[314441180,1708355433283,-150.01,0.00039299,2]
[314441181,1708355433292,-3319.32799788,0.00039299,2]
[314441182,1708355433302,-11023.37144936,0.00039299,2]
[314441183,1708355433315,-27847.0306,0.00039299,2]